[Event "Titled Tuesday Blitz November 9 2021"]
[White "Karolczuk, Iwo"]
[Black "Kobalia, Mikhail"]
[WhiteFideId "21816972"]
[BlackFideId "4119150"]
[WhiteElo "2093"]
[BlackElo "2543"]
[Result "1/2-1/2"]
[Round "10"]
[TimeControl "180+1"]
[Date "2021.11.09"]
[WhiteClock "0:00:07"]
[BlackClock "0:00:03"]

1. e4 {[%clk 0:03:00]}  c5 {[%clk 0:02:58]} 2. Nc3 {[%clk 0:03:00]}  e6 {[%clk 0:02:57]} 3. Nge2 {[%clk 0:02:59]}  a6 {[%clk 0:02:56]} 4. g3 {[%clk 0:02:59]}  b5 {[%clk 0:02:56]} 5. Bg2 {[%clk 0:02:59]}  Bb7 {[%clk 0:02:56]} 6. O-O {[%clk 0:02:59]}  b4 {[%clk 0:02:56]} 7. Na4 {[%clk 0:02:56]}  Nf6 {[%clk 0:02:55]} 8. d3 {[%clk 0:02:39]}  d5 {[%clk 0:02:44]} 9. exd5 {[%clk 0:02:37]}  Nxd5 {[%clk 0:02:43]} 10. Nf4 {[%clk 0:02:17]}  Be7 {[%clk 0:02:27]} 11. Nxd5 {[%clk 0:01:56]}  Bxd5 {[%clk 0:02:27]} 12. Bxd5 {[%clk 0:01:55]}  exd5 {[%clk 0:02:28]} 13. Re1 {[%clk 0:01:22]}  O-O {[%clk 0:02:21]} 14. Qf3 {[%clk 0:01:09]}  Nc6 {[%clk 0:02:18]} 15. c3 {[%clk 0:01:00]}  Qa5 {[%clk 0:01:57]} 16. b3 {[%clk 0:00:49]}  bxc3 {[%clk 0:01:55]} 17. Qxd5 {[%clk 0:00:38]}  Nb4 {[%clk 0:01:54]} 18. Qc4 {[%clk 0:00:22]}  Bf6 {[%clk 0:01:48]} 19. Re2 {[%clk 0:00:11]}  c2 {[%clk 0:01:33]} 20. Bb2 {[%clk 0:00:11]}  Bxb2 {[%clk 0:01:32]} 21. Nxb2 {[%clk 0:00:12]}  Rfe8 {[%clk 0:01:03]} 22. Rxe8+ {[%clk 0:00:10]}  Rxe8 {[%clk 0:01:03]} 23. a3 {[%clk 0:00:10]}  g6 {[%clk 0:00:26]} 24. Na4 {[%clk 0:00:10]}  Nxd3 {[%clk 0:00:23]} 25. Qxc2 {[%clk 0:00:08]}  Re1+ {[%clk 0:00:13]} 26. Rxe1 {[%clk 0:00:08]}  Qxe1+ {[%clk 0:00:14]} 27. Kg2 {[%clk 0:00:08]}  Qe4+ {[%clk 0:00:14]} 28. Kf1 {[%clk 0:00:08]}  Qh1+ {[%clk 0:00:10]} 29. Ke2 {[%clk 0:00:08]}  Ne5 {[%clk 0:00:10]} 30. Nxc5 {[%clk 0:00:07]}  Qxh2 {[%clk 0:00:09]} 31. Qe4 {[%clk 0:00:05]}  Qh5+ {[%clk 0:00:08]} 32. f3 {[%clk 0:00:05]}  Qh2+ {[%clk 0:00:08]} 33. Ke3 {[%clk 0:00:05]}  Qxg3 {[%clk 0:00:08]} 34. b4 {[%clk 0:00:04]}  Qe1+ {[%clk 0:00:07]} 35. Kf4 {[%clk 0:00:04]}  Qxe4+ {[%clk 0:00:06]} 36. Kxe4 {[%clk 0:00:04]}  Nc4 {[%clk 0:00:06]} 37. a4 {[%clk 0:00:05]}  a5 {[%clk 0:00:07]} 38. b5 {[%clk 0:00:05]}  Nb6 {[%clk 0:00:07]} 39. Nb7 {[%clk 0:00:04]}  Nxa4 {[%clk 0:00:06]} 40. Nxa5 {[%clk 0:00:05]}  Nc3+ {[%clk 0:00:06]} 41. Ke5 {[%clk 0:00:04]}  Nxb5 {[%clk 0:00:07]} 42. Kf6 {[%clk 0:00:05]}  Nc7 {[%clk 0:00:07]} 43. Nc6 {[%clk 0:00:04]}  Nd5+ {[%clk 0:00:07]} 44. Ke5 {[%clk 0:00:05]}  Ne3 {[%clk 0:00:07]} 45. Kf6 {[%clk 0:00:05]}  h5 {[%clk 0:00:07]} 46. Nd8 {[%clk 0:00:02]}  Nd5+ {[%clk 0:00:05]} 47. Ke5 {[%clk 0:00:03]}  Nc3 {[%clk 0:00:03]} 48. Kf6 {[%clk 0:00:03]}  h4 {[%clk 0:00:03]} 49. Nxf7 {[%clk 0:00:03]}  h3 {[%clk 0:00:04]} 50. Nh6+ {[%clk 0:00:03]}  Kh7 {[%clk 0:00:04]} 51. Ng4 {[%clk 0:00:04]}  Nd5+ {[%clk 0:00:03]} 52. Kg5 {[%clk 0:00:03]}  Ne3 {[%clk 0:00:03]} 53. Nh2 {[%clk 0:00:02]}  Kg7 {[%clk 0:00:01]} 54. Kh4 {[%clk 0:00:02]}  Ng2+ {[%clk 0:00:01]} 55. Kxh3 {[%clk 0:00:03]}  Nf4+ {[%clk 0:00:02]} 56. Kg4 {[%clk 0:00:03]}  Ne6 {[%clk 0:00:03]} 57. Nf1 {[%clk 0:00:03]}  Kf6 {[%clk 0:00:03]} 58. Ng3 {[%clk 0:00:04]}  Ke5 {[%clk 0:00:03]} 59. Ne4 {[%clk 0:00:04]}  Nf8 {[%clk 0:00:02]} 60. Ng5 {[%clk 0:00:04]}  Kf6 {[%clk 0:00:02]} 61. Ne4+ {[%clk 0:00:04]}  Kg7 {[%clk 0:00:01]} 62. Ng5 {[%clk 0:00:05]}  Kf6 {[%clk 0:00:01]} 63. Nh3 {[%clk 0:00:04]}  Ne6 {[%clk 0:00:01]} 64. Nf2 {[%clk 0:00:05]}  g5 {[%clk 0:00:01]} 65. Ne4+ {[%clk 0:00:05]}  Kg6 {[%clk 0:00:02]} 66. Nd6 {[%clk 0:00:05]}  Kf6 {[%clk 0:00:02]} 67. Ne4+ {[%clk 0:00:05]}  Kg6 {[%clk 0:00:02]} 68. Ng3 {[%clk 0:00:06]}  Kf6 {[%clk 0:00:03]} 69. Nh5+ {[%clk 0:00:06]}  Kg6 {[%clk 0:00:03]} 70. f4 {[%clk 0:00:06]}  gxf4 {[%clk 0:00:03]} 71. Nxf4+ {[%clk 0:00:07]} 1/2-1/2


[Site "https://www.chess.com"]

[Event "Titled Tuesday Blitz November 9 2021"]
[White "Libiszewski, Fabien"]
[Black "Janaszak, Dawid"]
[WhiteFideId "616834"]
[BlackFideId "1119206"]
[WhiteElo "2440"]
[BlackElo "2215"]
[Result "1/2-1/2"]
[Round "10"]
[TimeControl "180+1"]
[Date "2021.11.09"]
[WhiteClock "0:00:06"]
[BlackClock "0:00:06"]

1. c4 {[%clk 0:03:00]}  Nf6 {[%clk 0:02:58]} 2. g3 {[%clk 0:02:58]}  g6 {[%clk 0:02:55]} 3. b3 {[%clk 0:02:56]}  Bg7 {[%clk 0:02:55]} 4. Bb2 {[%clk 0:02:57]}  O-O {[%clk 0:02:55]} 5. Bg2 {[%clk 0:02:57]}  c6 {[%clk 0:02:50]} 6. Nf3 {[%clk 0:02:54]}  d5 {[%clk 0:02:50]} 7. d3 {[%clk 0:02:54]}  a5 {[%clk 0:02:44]} 8. Qc2 {[%clk 0:02:47]}  a4 {[%clk 0:02:38]} 9. b4 {[%clk 0:02:46]}  dxc4 {[%clk 0:02:34]} 10. Qxc4 {[%clk 0:02:39]}  Be6 {[%clk 0:02:33]} 11. Qc2 {[%clk 0:02:39]}  a3 {[%clk 0:02:25]} 12. Nxa3 {[%clk 0:02:35]}  Na6 {[%clk 0:02:25]} 13. Bc3 {[%clk 0:02:34]}  Nxb4 {[%clk 0:02:09]} 14. Bxb4 {[%clk 0:02:32]}  Nd5 {[%clk 0:02:09]} 15. Rb1 {[%clk 0:01:32]}  Nxb4 {[%clk 0:02:08]} 16. Rxb4 {[%clk 0:01:33]}  Qa5 {[%clk 0:01:51]} 17. Qd2 {[%clk 0:01:27]}  Qxa3 {[%clk 0:01:50]} 18. d4 {[%clk 0:01:24]}  Qxa2 {[%clk 0:01:37]} 19. Qxa2 {[%clk 0:01:11]}  Rxa2 {[%clk 0:01:38]} 20. Rxb7 {[%clk 0:01:09]}  Ra1+ {[%clk 0:01:26]} 21. Kd2 {[%clk 0:01:08]}  Ra2+ {[%clk 0:01:27]} 22. Kd3 {[%clk 0:01:03]}  Rfa8 {[%clk 0:00:53]} 23. Rc1 {[%clk 0:00:36]}  Bh6 {[%clk 0:00:45]} 24. Rc3 {[%clk 0:00:25]}  Bf5+ {[%clk 0:00:30]} 25. e4 {[%clk 0:00:24]}  Bg4 {[%clk 0:00:29]} 26. h3 {[%clk 0:00:17]}  Rxf2 {[%clk 0:00:26]} 27. hxg4 {[%clk 0:00:15]}  Rxg2 {[%clk 0:00:26]} 28. g5 {[%clk 0:00:11]}  Bxg5 {[%clk 0:00:20]} 29. Kc4 {[%clk 0:00:07]}  Rxg3 {[%clk 0:00:20]} 30. Nxg5 {[%clk 0:00:06]}  Rxg5 {[%clk 0:00:21]} 31. Rxe7 {[%clk 0:00:07]}  h5 {[%clk 0:00:18]} 32. Rf3 {[%clk 0:00:07]}  Rf8 {[%clk 0:00:16]} 33. e5 {[%clk 0:00:07]}  h4 {[%clk 0:00:14]} 34. Rh3 {[%clk 0:00:06]}  Rg4 {[%clk 0:00:14]} 35. Rd7 {[%clk 0:00:05]}  g5 {[%clk 0:00:14]} 36. Rd6 {[%clk 0:00:05]}  Kg7 {[%clk 0:00:11]} 37. Rxc6 {[%clk 0:00:05]}  Rg3 {[%clk 0:00:08]} 38. Rxg3 {[%clk 0:00:03]}  hxg3 {[%clk 0:00:09]} 39. Kd3 {[%clk 0:00:04]}  Rh8 {[%clk 0:00:07]} 40. Rc1 {[%clk 0:00:03]}  Rh4 {[%clk 0:00:06]} 41. Rg1 {[%clk 0:00:03]}  Rg4 {[%clk 0:00:05]} 42. Ke3 {[%clk 0:00:03]}  Kf8 {[%clk 0:00:05]} 43. d5 {[%clk 0:00:03]}  Ke7 {[%clk 0:00:06]} 44. Kf3 {[%clk 0:00:04]}  Rf4+ {[%clk 0:00:05]} 45. Ke3 {[%clk 0:00:04]}  Rf5 {[%clk 0:00:05]} 46. Ke4 {[%clk 0:00:04]}  Rf4+ {[%clk 0:00:05]} 47. Ke3 {[%clk 0:00:04]}  Rf5 {[%clk 0:00:06]} 48. Ke4 {[%clk 0:00:05]}  Rf4+ {[%clk 0:00:06]} 49. Ke3 {[%clk 0:00:06]} 1/2-1/2


[Site "https://www.chess.com"]

[Event "Titled Tuesday Blitz November 9 2021"]
[White "Llorente Zaro, Alfonso"]
[Black "Yashmetov, Mikhail"]
[WhiteFideId "2254131"]
[BlackFideId "24198900"]
[WhiteElo "2480"]
[BlackElo "2305"]
[Result "1-0"]
[Round "10"]
[TimeControl "180+1"]
[Date "2021.11.09"]
[WhiteClock "0:00:07"]
[BlackClock "0:00:04"]

1. b3 {[%clk 0:02:59]}  d5 {[%clk 0:02:21]} 2. e3 {[%clk 0:02:58]}  Nf6 {[%clk 0:02:21]} 3. Nf3 {[%clk 0:02:57]}  g6 {[%clk 0:02:21]} 4. c4 {[%clk 0:02:57]}  Bg7 {[%clk 0:02:20]} 5. Bb2 {[%clk 0:02:58]}  O-O {[%clk 0:02:20]} 6. Be2 {[%clk 0:02:58]}  c6 {[%clk 0:02:18]} 7. O-O {[%clk 0:02:57]}  Bf5 {[%clk 0:02:18]} 8. d3 {[%clk 0:02:57]}  Nbd7 {[%clk 0:02:16]} 9. Nbd2 {[%clk 0:02:56]}  Re8 {[%clk 0:02:13]} 10. Nd4 {[%clk 0:02:56]}  e5 {[%clk 0:02:11]} 11. Nxf5 {[%clk 0:02:56]}  gxf5 {[%clk 0:02:12]} 12. Rc1 {[%clk 0:02:54]}  Nf8 {[%clk 0:02:10]} 13. b4 {[%clk 0:02:53]}  Ng6 {[%clk 0:02:10]} 14. Qb3 {[%clk 0:02:53]}  e4 {[%clk 0:02:05]} 15. b5 {[%clk 0:02:50]}  f4 {[%clk 0:02:03]} 16. bxc6 {[%clk 0:02:46]}  bxc6 {[%clk 0:02:03]} 17. cxd5 {[%clk 0:02:46]}  cxd5 {[%clk 0:02:01]} 18. Bxf6 {[%clk 0:02:39]}  Bxf6 {[%clk 0:01:57]} 19. dxe4 {[%clk 0:02:37]}  dxe4 {[%clk 0:01:56]} 20. Rcd1 {[%clk 0:02:36]}  Qa5 {[%clk 0:01:47]} 21. Bc4 {[%clk 0:02:29]}  Re7 {[%clk 0:01:38]} 22. Bd5 {[%clk 0:02:23]}  Rae8 {[%clk 0:01:33]} 23. Nc4 {[%clk 0:02:03]}  Qc7 {[%clk 0:01:09]} 24. Nd6 {[%clk 0:02:02]}  Rb8 {[%clk 0:01:08]} 25. Qa4 {[%clk 0:01:23]}  Be5 {[%clk 0:01:04]} 26. Nxf7 {[%clk 0:01:14]}  Rxf7 {[%clk 0:00:58]} 27. Qxe4 {[%clk 0:01:10]}  Kg7 {[%clk 0:00:54]} 28. Bxf7 {[%clk 0:01:07]}  Qxf7 {[%clk 0:00:55]} 29. Rd5 {[%clk 0:01:05]}  Re8 {[%clk 0:00:46]} 30. exf4 {[%clk 0:00:42]}  Bxf4 {[%clk 0:00:30]} 31. Qd3 {[%clk 0:00:22]}  Re7 {[%clk 0:00:28]} 32. Rd1 {[%clk 0:00:21]}  Be5 {[%clk 0:00:25]} 33. g3 {[%clk 0:00:20]}  Bf6 {[%clk 0:00:21]} 34. Rd7 {[%clk 0:00:19]}  Ne5 {[%clk 0:00:20]} 35. Rxe7 {[%clk 0:00:19]}  Qxe7 {[%clk 0:00:15]} 36. Qe4 {[%clk 0:00:20]}  Qa3 {[%clk 0:00:13]} 37. Qd5 {[%clk 0:00:15]}  Qb2 {[%clk 0:00:05]} 38. Kg2 {[%clk 0:00:15]}  Ng6 {[%clk 0:00:04]} 39. h4 {[%clk 0:00:13]}  Qe5 {[%clk 0:00:03]} 40. Qxe5 {[%clk 0:00:10]}  Nxe5 {[%clk 0:00:04]} 41. Rb1 {[%clk 0:00:11]}  Nc6 {[%clk 0:00:03]} 42. Rb7+ {[%clk 0:00:10]}  Kg6 {[%clk 0:00:03]} 43. Rc7 {[%clk 0:00:11]}  Nb4 {[%clk 0:00:03]} 44. Rxa7 {[%clk 0:00:11]}  Bd4 {[%clk 0:00:02]} 45. Rd7 {[%clk 0:00:10]}  Nc2 {[%clk 0:00:01]} 46. a4 {[%clk 0:00:10]}  Ne1+ {[%clk 0:00:02]} 47. Kf1 {[%clk 0:00:09]}  Nf3 {[%clk 0:00:03]} 48. a5 {[%clk 0:00:08]}  Bc5 {[%clk 0:00:03]} 49. a6 {[%clk 0:00:07]}  Ne5 {[%clk 0:00:04]} 50. a7 {[%clk 0:00:07]} 1-0


[Site "https://www.chess.com"]

[Event "Titled Tuesday Blitz November 9 2021"]
[White "Madaminov, Mukhiddin"]
[Black "Van der Werf, Mark"]
[WhiteFideId "14210703"]
[BlackFideId "1000470"]
[WhiteElo "1855"]
[BlackElo "2398"]
[Result "1-0"]
[Round "10"]
[TimeControl "180+1"]
[Date "2021.11.09"]
[WhiteClock "0:02:16"]
[BlackClock "0:01:39"]

1. d4 {[%clk 0:03:00]}  Nf6 {[%clk 0:02:59]} 2. Nc3 {[%clk 0:03:00]}  d6 {[%clk 0:02:56]} 3. e4 {[%clk 0:03:00]}  g6 {[%clk 0:02:57]} 4. f4 {[%clk 0:03:00]}  Bg7 {[%clk 0:02:56]} 5. Bd3 {[%clk 0:03:01]}  Nc6 {[%clk 0:02:51]} 6. Nf3 {[%clk 0:03:00]}  Bg4 {[%clk 0:02:51]} 7. e5 {[%clk 0:02:59]}  dxe5 {[%clk 0:02:47]} 8. dxe5 {[%clk 0:02:58]}  Nd5 {[%clk 0:02:43]} 9. h3 {[%clk 0:02:58]}  Nxc3 {[%clk 0:02:40]} 10. bxc3 {[%clk 0:02:57]}  Bf5 {[%clk 0:02:35]} 11. O-O {[%clk 0:02:56]}  O-O {[%clk 0:02:27]} 12. Be3 {[%clk 0:02:53]}  Qd5 {[%clk 0:02:17]} 13. Qe2 {[%clk 0:02:38]}  Bxd3 {[%clk 0:02:14]} 14. cxd3 {[%clk 0:02:39]}  Rad8 {[%clk 0:02:12]} 15. Rfd1 {[%clk 0:02:38]}  f6 {[%clk 0:02:10]} 16. c4 {[%clk 0:02:37]}  Qa5 {[%clk 0:02:03]} 17. exf6 {[%clk 0:02:25]}  exf6 {[%clk 0:02:03]} 18. Rab1 {[%clk 0:02:24]}  Qa6 {[%clk 0:02:00]} 19. f5 {[%clk 0:02:23]}  g5 {[%clk 0:01:54]} 20. Nd2 {[%clk 0:02:18]}  Rfe8 {[%clk 0:01:52]} 21. Ne4 {[%clk 0:02:18]}  Nd4 {[%clk 0:01:42]} 22. Bxd4 {[%clk 0:02:16]}  Rxd4 {[%clk 0:01:39]} 23. Nxf6+ {[%clk 0:02:16]} 1-0


[Site "https://www.chess.com"]

[Event "Titled Tuesday Blitz November 9 2021"]
[White "Martinez Alcantara, Jose Eduardo"]
[Black "Svane, Frederik"]
[WhiteFideId "3805662"]
[BlackFideId "12923044"]
[WhiteElo "2690"]
[BlackElo "2459"]
[Result "1-0"]
[Round "10"]
[TimeControl "180+1"]
[Date "2021.11.09"]
[WhiteClock "0:01:51"]
[BlackClock "0:01:56"]

1. e4 {[%clk 0:03:00]}  c5 {[%clk 0:03:00]} 2. Nf3 {[%clk 0:03:00]}  e6 {[%clk 0:03:00]} 3. d4 {[%clk 0:03:00]}  cxd4 {[%clk 0:03:01]} 4. Nxd4 {[%clk 0:03:01]}  a6 {[%clk 0:03:01]} 5. Bd3 {[%clk 0:03:00]}  Qb6 {[%clk 0:03:01]} 6. Be3 {[%clk 0:02:58]}  Qxb2 {[%clk 0:02:55]} 7. Nd2 {[%clk 0:02:57]}  Qb6 {[%clk 0:02:54]} 8. O-O {[%clk 0:02:53]}  Qc7 {[%clk 0:02:53]} 9. f4 {[%clk 0:02:52]}  d6 {[%clk 0:02:51]} 10. e5 {[%clk 0:02:41]}  dxe5 {[%clk 0:02:39]} 11. fxe5 {[%clk 0:02:42]}  Qxe5 {[%clk 0:02:39]} 12. Nc4 {[%clk 0:02:32]}  Qc7 {[%clk 0:02:39]} 13. Bf4 {[%clk 0:02:04]}  Qc5 {[%clk 0:02:39]} 14. Kh1 {[%clk 0:02:04]}  Qxd4 {[%clk 0:02:26]} 15. Nd6+ {[%clk 0:02:03]}  Qxd6 {[%clk 0:02:24]} 16. Bxd6 {[%clk 0:02:03]}  Bxd6 {[%clk 0:02:25]} 17. Qg4 {[%clk 0:02:04]}  Be5 {[%clk 0:02:09]} 18. Rae1 {[%clk 0:01:54]}  Bc3 {[%clk 0:02:09]} 19. Qc4 {[%clk 0:01:51]}  Bxe1 {[%clk 0:02:01]} 20. Qxc8+ {[%clk 0:01:51]}  Ke7 {[%clk 0:02:01]} 21. Qxb7+ {[%clk 0:01:52]}  Nd7 {[%clk 0:02:02]} 22. Qxa8 {[%clk 0:01:52]}  Bc3 {[%clk 0:01:58]} 23. Bxa6 {[%clk 0:01:52]}  g6 {[%clk 0:01:57]} 24. Bb5 {[%clk 0:01:52]}  Nh6 {[%clk 0:01:56]} 25. Qa3+ {[%clk 0:01:51]} 1-0


[Site "https://www.chess.com"]

[Event "Titled Tuesday Blitz November 9 2021"]
[White "Papasimakopoulos, Alexandros"]
[Black "Khanin, Semen"]
[WhiteFideId "4244125"]
[BlackFideId "4111990"]
[WhiteElo "2394"]
[BlackElo "2442"]
[Result "1-0"]
[Round "10"]
[TimeControl "180+1"]
[Date "2021.11.09"]
[WhiteClock "0:00:50"]
[BlackClock "0:00:58"]

1. d4 {[%clk 0:02:21]}  g6 {[%clk 0:02:59]} 2. c4 {[%clk 0:02:21]}  Bg7 {[%clk 0:03:00]} 3. e4 {[%clk 0:02:21]}  d6 {[%clk 0:03:01]} 4. Nc3 {[%clk 0:02:21]}  e5 {[%clk 0:03:01]} 5. Nge2 {[%clk 0:02:22]}  exd4 {[%clk 0:03:00]} 6. Nxd4 {[%clk 0:02:22]}  Ne7 {[%clk 0:02:58]} 7. h4 {[%clk 0:02:22]}  Nbc6 {[%clk 0:02:53]} 8. Nxc6 {[%clk 0:02:22]}  Nxc6 {[%clk 0:02:53]} 9. h5 {[%clk 0:02:22]}  Be6 {[%clk 0:02:50]} 10. Be2 {[%clk 0:02:18]}  a6 {[%clk 0:02:44]} 11. Nd5 {[%clk 0:02:13]}  Bd4 {[%clk 0:02:36]} 12. hxg6 {[%clk 0:02:09]}  hxg6 {[%clk 0:02:36]} 13. Rxh8+ {[%clk 0:02:10]}  Bxh8 {[%clk 0:02:36]} 14. Be3 {[%clk 0:02:05]}  Qh4 {[%clk 0:02:35]} 15. Qd2 {[%clk 0:02:03]}  O-O-O {[%clk 0:02:35]} 16. O-O-O {[%clk 0:01:53]}  Qxe4 {[%clk 0:02:33]} 17. Bf3 {[%clk 0:01:53]}  Qxc4+ {[%clk 0:02:33]} 18. Kb1 {[%clk 0:01:46]}  Ne5 {[%clk 0:02:00]} 19. Nb6+ {[%clk 0:01:22]}  cxb6 {[%clk 0:01:55]} 20. Rc1 {[%clk 0:01:22]}  Nxf3 {[%clk 0:01:53]} 21. Rxc4+ {[%clk 0:01:20]}  Bxc4 {[%clk 0:01:52]} 22. gxf3 {[%clk 0:01:21]}  b5 {[%clk 0:01:22]} 23. Bb6 {[%clk 0:01:15]}  Re8 {[%clk 0:01:13]} 24. Qxd6 {[%clk 0:01:07]}  Be5 {[%clk 0:01:13]} 25. Qc5+ {[%clk 0:01:02]}  Kb8 {[%clk 0:01:13]} 26. Kc2 {[%clk 0:00:49]}  Bxa2 {[%clk 0:01:01]} 27. b3 {[%clk 0:00:49]}  Rc8 {[%clk 0:01:01]} 28. Ba7+ {[%clk 0:00:49]}  Ka8 {[%clk 0:00:58]} 29. Qxc8+ {[%clk 0:00:50]} 1-0


[Site "https://www.chess.com"]

[Event "Titled Tuesday Blitz November 9 2021"]
[White "Piesik, Piotr"]
[Black "Zhigalko, Sergei"]
[WhiteFideId "1136194"]
[BlackFideId "13502956"]
[WhiteElo "2336"]
[BlackElo "2662"]
[Result "0-1"]
[Round "10"]
[TimeControl "180+1"]
[Date "2021.11.09"]
[WhiteClock "0:02:27"]
[BlackClock "0:01:52"]

1. Nf3 {[%clk 0:03:00]}  d5 {[%clk 0:03:00]} 2. g3 {[%clk 0:03:01]}  c6 {[%clk 0:03:00]} 3. Bg2 {[%clk 0:03:00]}  Bg4 {[%clk 0:03:00]} 4. O-O {[%clk 0:02:59]}  Nd7 {[%clk 0:03:01]} 5. d3 {[%clk 0:02:58]}  e6 {[%clk 0:03:01]} 6. Nbd2 {[%clk 0:02:58]}  Bd6 {[%clk 0:03:01]} 7. e4 {[%clk 0:02:57]}  Ne7 {[%clk 0:03:01]} 8. h3 {[%clk 0:02:57]}  Bh5 {[%clk 0:03:01]} 9. Qe1 {[%clk 0:02:56]}  O-O {[%clk 0:03:01]} 10. Nb3 {[%clk 0:02:54]}  a5 {[%clk 0:02:59]} 11. a4 {[%clk 0:02:54]}  Re8 {[%clk 0:02:57]} 12. Bd2 {[%clk 0:02:51]}  Bc7 {[%clk 0:02:47]} 13. Nh4 {[%clk 0:02:50]}  f6 {[%clk 0:02:45]} 14. f4 {[%clk 0:02:49]}  Bf7 {[%clk 0:02:39]} 15. Nf3 {[%clk 0:02:48]}  e5 {[%clk 0:02:27]} 16. fxe5 {[%clk 0:02:42]}  Nxe5 {[%clk 0:02:22]} 17. Nxe5 {[%clk 0:02:42]}  Bxe5 {[%clk 0:02:22]} 18. Bc3 {[%clk 0:02:42]}  Bc7 {[%clk 0:02:12]} 19. g4 {[%clk 0:02:38]}  Qd6 {[%clk 0:01:52]} 20. e5 {[%clk 0:02:27]}  fxe5 {[%clk 0:01:52]} 21. Bxa5 {[%clk 0:02:27]}  Bxa5 {[%clk 0:01:51]} 22. Nxa5 {[%clk 0:02:27]}  Qc5+ {[%clk 0:01:52]} 23. Qf2 {[%clk 0:02:27]}  Qxf2+ {[%clk 0:01:52]} 0-1


[Site "https://www.chess.com"]

[Event "Titled Tuesday Blitz November 9 2021"]
[White "Polivanov, Anatoliy"]
[Black "Ostrovskiy, Andrey"]
[WhiteFideId "14109468"]
[BlackFideId "14110326"]
[WhiteElo "2472"]
[BlackElo "2469"]
[Result "1-0"]
[Round "10"]
[TimeControl "180+1"]
[Date "2021.11.09"]
[WhiteClock "0:00:21"]
[BlackClock "0:01:32"]

1. e4 {[%clk 0:03:00]}  e5 {[%clk 0:02:59]} 2. Nf3 {[%clk 0:03:00]}  Nc6 {[%clk 0:03:00]} 3. d4 {[%clk 0:03:01]}  exd4 {[%clk 0:02:59]} 4. Bc4 {[%clk 0:03:02]}  Nf6 {[%clk 0:02:57]} 5. e5 {[%clk 0:03:01]}  d5 {[%clk 0:02:57]} 6. Bb5 {[%clk 0:03:01]}  Nd7 {[%clk 0:02:57]} 7. Bxc6 {[%clk 0:02:59]}  bxc6 {[%clk 0:02:58]} 8. Nxd4 {[%clk 0:02:59]}  Nb8 {[%clk 0:02:59]} 9. O-O {[%clk 0:02:57]}  Be7 {[%clk 0:02:59]} 10. Qf3 {[%clk 0:02:50]}  O-O {[%clk 0:03:00]} 11. Nc3 {[%clk 0:02:43]}  Be6 {[%clk 0:02:58]} 12. Rd1 {[%clk 0:02:39]}  Qd7 {[%clk 0:02:47]} 13. h3 {[%clk 0:02:32]}  c5 {[%clk 0:02:46]} 14. Nxe6 {[%clk 0:02:30]}  fxe6 {[%clk 0:02:46]} 15. Qg4 {[%clk 0:02:30]}  Rf5 {[%clk 0:02:38]} 16. Bh6 {[%clk 0:02:23]}  Bf8 {[%clk 0:02:31]} 17. Ne4 {[%clk 0:02:11]}  Qf7 {[%clk 0:02:21]} 18. Nf6+ {[%clk 0:01:35]}  Kh8 {[%clk 0:02:20]} 19. Rxd5 {[%clk 0:01:30]}  exd5 {[%clk 0:02:09]} 20. Qxf5 {[%clk 0:01:26]}  gxf6 {[%clk 0:02:02]} 21. e6 {[%clk 0:01:11]}  Qe7 {[%clk 0:01:59]} 22. Qxd5 {[%clk 0:00:56]}  c6 {[%clk 0:01:58]} 23. Bxf8 {[%clk 0:00:52]}  Qxf8 {[%clk 0:01:59]} 24. Qd3 {[%clk 0:00:49]}  a5 {[%clk 0:01:55]} 25. Re1 {[%clk 0:00:45]}  Qe7 {[%clk 0:01:54]} 26. Rd1 {[%clk 0:00:39]}  Na6 {[%clk 0:01:55]} 27. Qc4 {[%clk 0:00:30]}  Nc7 {[%clk 0:01:47]} 28. Rd7 {[%clk 0:00:25]}  Qxe6 {[%clk 0:01:47]} 29. Qd3 {[%clk 0:00:25]}  f5 {[%clk 0:01:32]} 30. Qc3+ {[%clk 0:00:21]} 1-0


[Site "https://www.chess.com"]